fUST/lending_fUST_20250821
["ID","MTS","AMOUNT","RATE_DAILY","PERIOD"]
[380435597,1755766232529,-179.64071856,0.00020986,2]
[380435598,1755766232538,-1200.0,0.00020987,2]
[380435599,1755766232547,-300.0,0.00020989,2]
[380435600,1755766232556,-1200.0,0.00020989,2]
[380435601,1755766232565,-300.0,0.00020989,2]
[380435602,1755766232573,-12183.75577711,0.0002099,2]
[380435603,1755766232582,-234.0,0.00021008,2]
[380435604,1755766232592,-2183.31810187,0.0002104,2]
[380435605,1755766232602,-160.0,0.0002105,2]
[380435606,1755766232611,-232.28399145,0.0002105,2]
[380435607,1755766232621,-160.0,0.0002105,2]
[380435608,1755766232630,-160.0,0.0002105,2]
[380435609,1755766232638,-12690.45384448,0.00021053,2]
[380435610,1755766232647,-160.0,0.00021054,2]
[380435611,1755766232656,-160.0,0.00021054,2]
[380435612,1755766232666,-2264.10087164,0.00021095,2]
[380435613,1755766232675,-590.96,0.00021099,2]
[380435614,1755766232683,-980.54331321,0.0002115,2]
[380435615,1755766232692,-1074.51373724,0.00021259,2]
[380435616,1755766232701,-791.0,0.00021306,2]
[380435617,1755766232710,-3009.59568277,0.00021367,2]
[380435618,1755766232718,-800.0,0.00021376,2]
[380435619,1755766232728,-600.0,0.0002139,2]
[380435620,1755766232739,-200.0,0.0002139,3]
[380435621,1755766232748,-151.0,0.0002139,2]
[380435622,1755766232756,-151.0,0.0002139,2]
[380435623,1755766232765,-151.0,0.0002139,2]
[380435624,1755766232774,-151.0,0.0002139,2]
[380435625,1755766232783,-151.0,0.0002139,2]
[380435626,1755766232791,-151.0,0.0002139,2]
[380435627,1755766232800,-151.0,0.0002139,2]
[380435628,1755766232809,-19187.29552238,0.0002139,2]
[380435629,1755766232818,-151.0,0.0002139,2]
[380435630,1755766232827,-151.0,0.0002139,2]
[380435631,1755766232836,-151.0,0.0002139,2]
[380435632,1755766232845,-245.86959066,0.0002139,2]
[380435633,1755766232854,-356.48,0.00021403,10]
[380435634,1755766232863,-297.07,0.00021403,10]
[380435635,1755766232872,-247.55,0.00021403,10]
[380435636,1755766232881,-255.71,0.00021405,3]
[380435637,1755766232890,-639.28,0.00021405,3]
[380435638,1755766232899,-532.74,0.00021405,3]
[380435639,1755766232907,-266.37,0.00021405,3]
[380435640,1755766232916,-799.12,0.00021405,3]
[380435641,1755766232926,-49230.66958279,0.00021413,2]
[380435642,1755766232935,-216.95272161,0.00021414,2]
[380435643,1755766232945,-160.0,0.00021414,2]
[380435644,1755766232955,-376.00439007,0.00021414,2]
[380435645,1755766232965,-160.0,0.00021414,2]
[380435646,1755766232974,-215.86710461,0.00021414,2]
[380435647,1755766232985,-500.0,0.00021414,2]
[380435648,1755766232995,-500.0,0.00021414,2]
[380435649,1755766233005,-500.0,0.00021414,2]
[380435650,1755766233014,-415.27258888,0.00021414,2]
[380435651,1755766233024,-500.0,0.00021414,2]
[380435653,1755766233034,-352.75215947,0.00021414,2]
[380435655,1755766233044,-500.0,0.00021414,2]
[380435657,1755766233053,-500.0,0.00021414,2]
[380435658,1755766233063,-424.62823156,0.00021414,2]
[380435661,1755766233073,-500.0,0.00021414,2]
[380435663,1755766233083,-500.0,0.00021414,2]
[380435664,1755766233092,-500.0,0.00021414,2]
[380435665,1755766233103,-500.0,0.00021414,2]
[380435667,1755766233112,-500.0,0.00021414,2]
[380435669,1755766233121,-500.0,0.00021414,2]
[380435671,1755766233131,-448.42467927,0.00021414,2]
[380435673,1755766233141,-500.0,0.00021414,2]
[380435675,1755766233150,-500.0,0.00021414,2]
[380435677,1755766233160,-420.12267026,0.00021414,2]
[380435679,1755766233170,-249.98750601,0.00021414,2]
[380435681,1755766233182,-500.0,0.00021414,2]
[380435683,1755766233192,-500.0,0.00021414,2]
[380435685,1755766233202,-449.13710511,0.00021414,2]
[380435687,1755766233212,-500.0,0.00021414,2]
[380435688,1755766233222,-500.0,0.00021414,2]
[380435690,1755766233234,-500.0,0.00021414,2]
[380435692,1755766233248,-500.0,0.00021414,2]
[380435694,1755766233257,-80736.96182728,0.00021415,7]
[380435695,1755766233271,-741.54415851,0.00021415,7]
[380435697,1755766233284,-37108.01594082,0.00021415,7]
[380435700,1755766233296,-2413.20718164,0.00021415,7]
[380435702,1755766233309,-9518.75830253,0.00021415,7]
[380435704,1755766233322,-741.26539315,0.00021415,7]
[380435758,1755766238354,-206.3,0.00021406,10]
[380435759,1755766238373,-485.61240194,0.00021414,2]
[380435760,1755766238401,-358.57888805,0.00021414,2]
[380435761,1755766238411,-6343.0465659,0.00021415,7]
[380435762,1755766238426,-771.49888527,0.00021415,7]
[380435763,1755766238436,-881.93471584,0.00021415,7]
[380435764,1755766238446,-500.0,0.00021415,2]
[380435765,1755766238455,-5796.15258568,0.00021416,2]
[380435766,1755766238468,-11460.82627945,0.00021416,2]
[380435767,1755766238479,-16806.60866493,0.00021416,2]
[380435768,1755766238493,-645.59995964,0.00021416,2]
[380435769,1755766238511,-53167.96199915,0.00021416,2]
[380435776,1755766240297,-277.55444643,0.00021416,2]
[380435828,1755766243348,-11495.0,0.00021416,2]
[380435829,1755766243403,-3906.56370112,0.00021416,2]
[380435830,1755766243414,-850.74278705,0.00021416,2]
[380435842,1755766246544,-2650.89793246,0.00021416,2]
[380435843,1755766246555,-567.50250183,0.00021416,2]
[380435844,1755766246703,-262374.58914226,0.00021416,2]
[380435845,1755766246712,-800.0,0.00021467,2]
[380435846,1755766246721,-500.0,0.00021473,2]
[380435847,1755766246730,-529.07721688,0.00021473,2]
[380435848,1755766246740,-500.0,0.00021473,2]
[380435849,1755766246749,-500.0,0.00021473,2]
[380435850,1755766246759,-504.0734374,0.00021473,2]
[380435851,1755766246769,-500.0,0.00021473,2]
[380435852,1755766246778,-500.0,0.00021473,2]
[380435853,1755766246788,-503.71323427,0.00021473,2]
[380435854,1755766246797,-244.1354157,0.00021473,2]
[380435855,1755766246807,-500.0,0.00021473,2]
[380435856,1755766246817,-500.0,0.00021473,2]
[380435857,1755766246827,-204.61222207,0.00021473,2]
[380435858,1755766246836,-500.0,0.00021473,2]
[380435859,1755766246846,-500.0,0.00021473,2]
[380435860,1755766246856,-500.0,0.00021473,2]
[380435861,1755766246865,-500.0,0.00021473,2]
[380435862,1755766246874,-500.0,0.00021473,2]
[380435863,1755766246884,-501.23549011,0.00021473,2]
[380435864,1755766246894,-500.0,0.00021473,2]
[380435865,1755766246902,-500.0,0.00021473,2]
[380435866,1755766246911,-502.23829695,0.00021473,2]
[380435867,1755766246920,-500.0,0.00021473,2]
[380435868,1755766246929,-501.66957797,0.00021473,2]
[380435869,1755766246938,-500.0,0.00021473,2]
[380435870,1755766246947,-320.84580144,0.00021473,2]
[380435871,1755766246957,-500.0,0.00021473,2]
[380435872,1755766246966,-627.70574856,0.00021473,2]
[380435873,1755766246975,-505.93360597,0.00021473,2]
[380435874,1755766246984,-500.0,0.00021473,2]
[380435875,1755766246993,-500.0,0.00021473,2]
[380435876,1755766247002,-500.0,0.00021473,2]
[380435877,1755766247011,-500.60690798,0.00021473,2]
[380435878,1755766247020,-366.71276158,0.00021473,2]
[380435879,1755766247029,-510.80217301,0.00021473,2]
[380435880,1755766247038,-500.0,0.00021473,2]
[380435881,1755766247047,-500.0,0.00021473,2]
[380435882,1755766247056,-599.94270815,0.00021473,2]
[380435883,1755766247065,-500.0,0.00021473,2]
[380435884,1755766247074,-501.609442,0.00021473,2]
[380435885,1755766247083,-500.0,0.00021473,2]
[380435886,1755766247092,-500.0,0.00021473,2]
[380435887,1755766247101,-348.69065731,0.00021473,2]
[380435888,1755766247110,-500.0,0.00021473,2]
[380435889,1755766247119,-800.0,0.00021484,2]
[380435890,1755766247128,-3009.59568276,0.00021494,2]
[380435891,1755766247137,-800.0,0.00021525,2]
[380435892,1755766247147,-800.0,0.00021556,2]
[380435893,1755766247155,-800.0,0.00021581,2]
[380435894,1755766247165,-151.0,0.000216,4]
[380435895,1755766247174,-800.0,0.00021619,2]
[380435896,1755766247182,-3009.59568276,0.0002162,2]
[380435897,1755766247191,-800.0,0.0002163,2]
[380435898,1755766247201,-590.96,0.00021647,2]
[380435899,1755766247211,-800.0,0.00021685,2]
[380435900,1755766247221,-500.0,0.00021689,2]
[380435901,1755766247230,-151.0,0.000217,3]
[380435902,1755766247239,-151.0,0.000217,3]
[380435903,1755766247250,-250.0,0.00021741,2]
[380435904,1755766247259,-3009.59568276,0.00021747,2]
[380435905,1755766247268,-151.0,0.000218,4]
[380435906,1755766247277,-151.0,0.000218,3]
[380435907,1755766247286,-151.0,0.000218,3]
[380435908,1755766247295,-151.0,0.000218,4]
[380435909,1755766247305,-151.0,0.000218,3]
[380435910,1755766247314,-151.0,0.000218,3]
[380435911,1755766247324,-1000.0,0.00021817,2]
[380435912,1755766247334,-173.49018429,0.00021817,2]
[380435913,1755766247343,-217.0,0.00021856,2]
[380435914,1755766247351,-1700.0,0.00021861,2]
[380435915,1755766247361,-3009.59568276,0.00021873,2]
[380435916,1755766247370,-200.88400951,0.00021896,2]
[380435917,1755766247385,-151.0,0.00021896,2]
[380435918,1755766247394,-151.0,0.00021896,2]
[380435919,1755766247403,-432.0,0.00021896,2]
[380435920,1755766247413,-151.0,0.00021896,2]
[380435921,1755766247425,-223.0110494,0.00021896,2]
[380435922,1755766247434,-151.0,0.00021896,2]
[380435923,1755766247443,-260.03124155,0.00021896,2]
[380435924,1755766247454,-152.17748378,0.00021896,2]
[380435925,1755766247463,-151.0,0.00021896,2]
[380435926,1755766247474,-153.85761261,0.00021896,2]
[380435927,1755766247484,-500.0,0.00021896,2]
[380435928,1755766247494,-500.0,0.00021896,2]
[380435929,1755766247505,-151.0,0.00021896,2]
[380435930,1755766247514,-151.0,0.000219,3]
[380435931,1755766247524,-151.0,0.000219,3]
[380435932,1755766247533,-151.0,0.000219,3]
[380435933,1755766247542,-151.0,0.000219,4]
[380435934,1755766247551,-422.3354219,0.00021911,2]
[380435935,1755766247560,-151.2282331,0.00021911,2]
[380435936,1755766247569,-180.139513,0.00021911,2]
[380435937,1755766247578,-326.0,0.00021912,2]
[380435938,1755766247588,-155.0,0.00021912,2]
[380435939,1755766247597,-180.77834243,0.00021912,2]
[380435940,1755766247606,-326.0,0.00021912,2]
[380435941,1755766247615,-326.0,0.00021912,2]
[380435942,1755766247625,-326.0,0.00021912,2]
[380435943,1755766247634,-1763.0,0.00021912,2]
[380435944,1755766247643,-1763.0,0.00021912,2]
[380435945,1755766247652,-1763.0,0.00021912,2]
[380435946,1755766247661,-1763.0,0.00021912,2]
[380435947,1755766247671,-1763.0,0.00021912,2]
[380435948,1755766247680,-265.351944,0.00021912,2]
[380435949,1755766247690,-1226.41136053,0.00021916,2]
[380435950,1755766247700,-500.0,0.00021916,2]
[380435951,1755766247709,-1226.41136053,0.00021916,2]
[380435952,1755766247718,-1226.41136053,0.00021916,2]
[380435953,1755766247728,-1226.41136053,0.00021916,2]
[380435954,1755766247737,-1226.41136053,0.00021916,2]
[380435955,1755766247747,-1226.41136053,0.00021916,2]
[380435956,1755766247756,-1226.41136053,0.00021916,2]
[380435957,1755766247766,-1226.41136053,0.00021916,2]
[380435958,1755766247775,-1226.41136053,0.00021916,2]
[380435959,1755766247785,-1226.41136053,0.00021916,2]
[380435960,1755766247794,-1226.41136053,0.00021916,2]
[380435961,1755766247803,-500.0,0.00021916,2]
[380435962,1755766247812,-1226.41136053,0.00021916,2]
[380435963,1755766247821,-500.0,0.00021916,2]
[380435964,1755766247830,-389.95341161,0.00021916,2]
[380435965,1755766247841,-1226.41136053,0.00021916,2]
[380435966,1755766247850,-1226.41136053,0.00021916,2]
[380435967,1755766247859,-1226.41136053,0.00021916,2]
[380435968,1755766247869,-1226.41136053,0.00021916,2]
[380435969,1755766247878,-1226.41136053,0.00021916,2]
[380435970,1755766247888,-1226.41136053,0.00021916,2]
[380435971,1755766247896,-1226.41136053,0.00021916,2]
[380435972,1755766247905,-1226.41136053,0.00021916,2]
[380435973,1755766247915,-1226.41136053,0.00021916,2]
[380435974,1755766247924,-1226.41136053,0.00021916,2]
[380435975,1755766247933,-1410.37306459,0.00021916,2]
[380435976,1755766247942,-1410.37306459,0.00021916,2]
[380435977,1755766247951,-1410.37306459,0.00021916,2]
[380435978,1755766247960,-1410.37306459,0.00021916,2]
[380435979,1755766247969,-1410.37306459,0.00021916,2]
[380435980,1755766247978,-1410.37306459,0.00021916,2]
[380435981,1755766247987,-1000.76646864,0.00021917,2]
[380435982,1755766247997,-480.0,0.00021917,3]
[380435983,1755766248007,-480.0,0.00021917,3]
[380435984,1755766248217,-486.32995317,0.00021917,3]
[380435985,1755766248227,-480.0,0.00021917,3]
[380435986,1755766248238,-480.0,0.00021917,3]
[380435987,1755766248247,-480.0,0.00021917,3]
[380435988,1755766248256,-429.72321266,0.00021917,3]
[380435989,1755766248266,-480.0,0.00021917,3]
[380435990,1755766248275,-317.89534433,0.00021917,3]
[380435991,1755766248284,-480.0,0.00021917,3]
[380435992,1755766248294,-480.0,0.00021917,3]
[380435993,1755766248304,-480.0,0.00021917,3]
[380435994,1755766248313,-480.0,0.00021917,3]
[380435995,1755766248322,-480.0,0.00021917,3]
[380435996,1755766248331,-480.0,0.00021917,3]
[380435997,1755766248341,-480.0,0.00021917,3]
[380435998,1755766248351,-480.0,0.00021917,3]
[380435999,1755766248360,-480.0,0.00021917,3]
[380436000,1755766248369,-480.0,0.00021917,3]
[380436001,1755766248381,-441.42150794,0.00021917,3]
[380436002,1755766248390,-12690.45384448,0.00021917,3]
[380436003,1755766248399,-480.0,0.00021917,3]
[380436004,1755766248410,-480.0,0.00021917,3]
[380436005,1755766248420,-480.0,0.00021917,3]
[380436006,1755766248430,-480.0,0.00021917,3]
[380436007,1755766248440,-408.28248189,0.00021917,3]
[380436008,1755766248450,-480.0,0.00021917,3]
[380436009,1755766248462,-461.09922218,0.00021917,3]
[380436010,1755766248473,-151.0,0.00021917,3]
[380436011,1755766248483,-480.0,0.00021917,3]
[380436012,1755766248493,-480.0,0.00021917,3]
[380436013,1755766248503,-161.880697,0.00021917,2]
[380436014,1755766248512,-151.0,0.00021917,3]
[380436015,1755766248522,-481.1926764,0.00021917,3]
[380436016,1755766248531,-151.0,0.00021917,3]
[380436017,1755766248541,-461.84217286,0.00021917,3]
[380436018,1755766248551,-480.0,0.00021917,3]
[380436019,1755766248560,-480.0,0.00021917,3]
[380436020,1755766248569,-480.0,0.00021917,3]
[380436021,1755766248578,-480.0,0.00021917,3]
[380436022,1755766248587,-151.0,0.00021917,3]
[380436023,1755766248597,-480.0,0.00021917,3]
[380436024,1755766248606,-151.0,0.00021917,3]
[380436025,1755766248615,-278.59259325,0.00021917,3]
[380436026,1755766248624,-480.0,0.00021917,3]
[380436027,1755766248634,-151.0,0.00021917,2]
[380436028,1755766248643,-151.0,0.00021917,3]
[380436029,1755766248651,-151.0,0.00021917,2]
[380436030,1755766248661,-480.0,0.00021917,3]
[380436031,1755766248670,-480.0,0.00021917,3]
[380436032,1755766248679,-480.0,0.00021917,3]
[380436033,1755766248688,-463.5320033,0.00021917,3]
[380436034,1755766248698,-480.0,0.00021917,3]
[380436035,1755766248708,-617.19,0.00021917,3]
[380436036,1755766248717,-480.0,0.00021917,3]
[380436037,1755766248727,-480.0,0.00021917,3]
[380436038,1755766248736,-480.0,0.00021917,3]
[380436039,1755766248747,-480.0,0.00021917,3]
[380436040,1755766248757,-480.0,0.00021917,3]
[380436041,1755766248766,-480.0,0.00021917,3]
[380436042,1755766248776,-480.0,0.00021917,3]
[380436043,1755766248786,-480.0,0.00021917,3]
[380436044,1755766248796,-591.69,0.00021917,3]
[380436045,1755766248806,-480.0,0.00021917,3]
[380436046,1755766248815,-480.0,0.00021917,3]
[380436047,1755766248825,-480.0,0.00021917,3]
[380436048,1755766248834,-480.0,0.00021917,3]
[380436049,1755766248843,-480.0,0.00021917,3]
[380436050,1755766248852,-463.02109313,0.00021917,3]
[380436051,1755766248862,-480.0,0.00021917,3]
[380436052,1755766248871,-480.0,0.00021917,3]
[380436053,1755766248880,-480.0,0.00021917,3]
[380436054,1755766248889,-185.37832267,0.00021917,3]
[380436055,1755766248898,-441.46349213,0.00021917,3]
[380436056,1755766248907,-480.0,0.00021917,3]
[380436057,1755766248917,-480.0,0.00021917,3]
[380436058,1755766248926,-480.0,0.00021917,3]
[380436059,1755766248936,-480.0,0.00021917,3]
[380436060,1755766248946,-565.22,0.00021917,3]
[380436061,1755766248955,-480.0,0.00021917,3]
[380436062,1755766248964,-480.0,0.00021917,3]
[380436063,1755766248973,-480.0,0.00021917,3]
[380436064,1755766248982,-480.0,0.00021917,3]
[380436065,1755766248991,-480.0,0.00021917,3]
[380436066,1755766249002,-480.0,0.00021917,3]
[380436067,1755766249011,-273.697609,0.00021917,2]
[380436068,1755766249020,-480.0,0.00021917,3]
[380436069,1755766249030,-480.0,0.00021917,3]
[380436070,1755766249039,-480.0,0.00021917,3]
[380436071,1755766249048,-480.0,0.00021917,3]
[380436072,1755766249058,-151.0,0.00021917,2]
[380436073,1755766249068,-151.0,0.00021917,2]
[380436074,1755766249078,-151.0,0.00021917,2]
[380436075,1755766249087,-318.79471407,0.00021917,3]
[380436076,1755766249097,-480.0,0.00021917,3]
[380436077,1755766249106,-480.0,0.00021917,3]
[380436078,1755766249115,-480.0,0.00021917,3]
[380436079,1755766249124,-480.0,0.00021917,3]
[380436080,1755766249134,-480.0,0.00021917,3]
[380436081,1755766249143,-480.0,0.00021917,3]
[380436082,1755766249152,-480.0,0.00021917,3]
[380436083,1755766249162,-480.0,0.00021917,3]
[380436084,1755766249172,-740.86,0.00021917,3]
[380436085,1755766249181,-480.0,0.00021917,3]
[380436086,1755766249191,-304.98048361,0.00021917,3]
[380436087,1755766249200,-480.0,0.00021917,3]
[380436088,1755766249210,-786.02,0.00021917,3]
[380436089,1755766249219,-151.0,0.00021917,2]
[380436090,1755766249229,-151.0,0.00021917,2]
[380436091,1755766249239,-480.0,0.00021917,3]
[380436092,1755766249250,-151.0,0.00021917,2]
[380436093,1755766249259,-480.0,0.00021917,3]
[380436094,1755766249269,-480.0,0.00021917,3]
[380436095,1755766249279,-1405.96,0.00021917,3]
[380436096,1755766249287,-480.0,0.00021917,3]
[380436097,1755766249297,-503.32233028,0.00021917,3]
[380436098,1755766249306,-480.0,0.00021917,3]
[380436099,1755766249315,-480.0,0.00021917,3]
[380436100,1755766249325,-480.0,0.00021917,3]
[380436101,1755766249334,-480.0,0.00021917,3]
[380436102,1755766249343,-481.55712861,0.00021917,3]
[380436103,1755766249353,-480.0,0.00021917,3]
[380436104,1755766249363,-480.0,0.00021917,3]
[380436105,1755766249373,-461.76039358,0.00021917,3]
[380436106,1755766249387,-480.0,0.00021917,3]
[380436107,1755766249396,-480.0,0.00021917,3]
[380436108,1755766249405,-480.0,0.00021917,3]
[380436109,1755766249415,-480.0,0.00021917,3]
[380436110,1755766249425,-480.0,0.00021917,3]
[380436111,1755766249435,-480.0,0.00021917,3]
[380436112,1755766249444,-480.0,0.00021917,3]
[380436113,1755766249454,-480.0,0.00021917,3]
[380436114,1755766249463,-462.619141,0.00021917,3]
[380436115,1755766249474,-480.0,0.00021917,3]
[380436116,1755766249483,-480.0,0.00021917,3]
[380436117,1755766249492,-352.56794128,0.00021917,2]
[380436118,1755766249502,-480.0,0.00021917,3]
[380436119,1755766249511,-480.0,0.00021917,3]
[380436120,1755766249520,-480.0,0.00021917,3]
[380436121,1755766249531,-201.76070544,0.00021917,3]
[380436122,1755766249541,-480.0,0.00021917,3]
[380436123,1755766249551,-480.0,0.00021917,3]
[380436124,1755766249560,-151.0,0.00021917,2]
[380436125,1755766249569,-152.232611,0.00021917,2]
[380436126,1755766249579,-480.0,0.00021917,3]
[380436127,1755766249588,-480.0,0.00021917,3]
[380436128,1755766249598,-480.0,0.00021917,3]
[380436129,1755766249607,-480.0,0.00021917,3]
[380436130,1755766249617,-1113.68,0.00021917,3]
[380436131,1755766249626,-480.0,0.00021917,3]
[380436132,1755766249635,-480.0,0.00021917,3]
[380436133,1755766249644,-480.0,0.00021917,3]
[380436134,1755766249655,-293.7965069,0.00021917,3]
[380436135,1755766249665,-239.30581156,0.00021917,3]
[380436136,1755766249675,-480.0,0.00021917,3]
[380436137,1755766249685,-480.0,0.00021917,3]
[380436138,1755766249695,-480.0,0.00021917,3]
[380436139,1755766249705,-480.0,0.00021917,3]
[380436140,1755766249715,-480.0,0.00021917,3]
[380436141,1755766249726,-480.0,0.00021917,3]
[380436142,1755766249736,-480.0,0.00021917,3]
[380436143,1755766249747,-152.084877,0.00021917,2]
[380436144,1755766249756,-480.0,0.00021917,3]
[380436145,1755766249766,-461.46205622,0.00021917,3]
[380436146,1755766249777,-480.0,0.00021917,3]
[380436147,1755766249787,-480.0,0.00021917,3]
[380436148,1755766249798,-480.0,0.00021917,3]
[380436149,1755766249807,-480.0,0.00021917,3]
[380436150,1755766249816,-480.0,0.00021917,3]
[380436151,1755766249826,-480.0,0.00021917,3]
[380436152,1755766249837,-480.0,0.00021917,3]
[380436153,1755766249847,-480.0,0.00021917,3]
[380436154,1755766249858,-480.0,0.00021917,3]
[380436155,1755766249867,-480.0,0.00021917,3]
[380436156,1755766249876,-480.0,0.00021917,3]
[380436157,1755766249886,-480.0,0.00021917,3]
[380436158,1755766249896,-480.0,0.00021917,3]
[380436159,1755766249906,-460.36050878,0.00021917,3]
[380436160,1755766249915,-480.0,0.00021917,3]
[380436161,1755766249924,-604.2077643,0.00021917,3]
[380436162,1755766249934,-480.0,0.00021917,3]
[380436163,1755766249943,-500.42702973,0.00021917,3]
[380436164,1755766249953,-480.0,0.00021917,3]
[380436165,1755766249962,-480.0,0.00021917,3]
[380436166,1755766249971,-480.0,0.00021917,3]
[380436167,1755766249981,-480.0,0.00021917,3]
[380436168,1755766249990,-480.0,0.00021917,3]
[380436169,1755766249999,-480.0,0.00021917,3]
[380436170,1755766250009,-480.0,0.00021917,3]
[380436171,1755766250018,-309.35036426,0.00021917,3]
[380436172,1755766250026,-480.0,0.00021917,3]
[380436173,1755766250036,-480.0,0.00021917,3]
[380436174,1755766250045,-480.0,0.00021917,3]
[380436175,1755766250054,-480.0,0.00021917,3]
[380436176,1755766250063,-151.0,0.00021917,2]
[380436177,1755766250072,-151.0,0.00021917,2]
[380436178,1755766250083,-151.0,0.00021917,2]
[380436179,1755766250093,-151.0,0.00021917,2]
[380436180,1755766250104,-151.0,0.00021917,2]
[380436181,1755766250114,-151.0,0.00021917,2]
[380436182,1755766250123,-151.0,0.00021917,2]
[380436183,1755766250133,-151.0,0.00021917,2]
[380436184,1755766250142,-480.0,0.00021917,3]
[380436185,1755766250151,-151.0,0.00021917,2]
[380436186,1755766250161,-151.0,0.00021917,2]
[380436187,1755766250170,-151.0,0.00021917,2]
[380436188,1755766250179,-480.0,0.00021917,3]
[380436189,1755766250187,-151.0,0.00021917,2]
[380436190,1755766250197,-151.0,0.00021917,2]
[380436191,1755766250206,-151.0,0.00021917,2]
[380436192,1755766250216,-151.0,0.00021917,2]
[380436193,1755766250225,-151.0,0.00021917,2]
[380436194,1755766250234,-1062.62,0.00021917,3]
[380436195,1755766250245,-151.0,0.00021917,2]
[380436196,1755766250254,-151.0,0.00021917,2]
[380436197,1755766250264,-294.741646,0.00021917,2]
[380436198,1755766250275,-480.0,0.00021917,3]
[380436199,1755766250285,-480.0,0.00021917,3]
[380436200,1755766250294,-480.0,0.00021917,3]
[380436201,1755766250305,-480.0,0.00021917,3]
[380436202,1755766250315,-480.0,0.00021917,3]
[380436203,1755766250324,-480.0,0.00021917,3]
[380436204,1755766250335,-480.0,0.00021917,3]
[380436205,1755766250344,-480.0,0.00021917,3]
[380436206,1755766250353,-480.0,0.00021917,3]
[380436207,1755766250362,-480.0,0.00021917,3]
[380436208,1755766250371,-480.0,0.00021917,3]
[380436209,1755766250387,-480.0,0.00021917,3]
[380436210,1755766250401,-546.39,0.00021917,3]
[380436211,1755766250411,-480.0,0.00021917,3]
[380436212,1755766250420,-480.0,0.00021917,3]
[380436213,1755766250430,-480.0,0.00021917,3]
[380436214,1755766250439,-986.85,0.00021917,3]
[380436215,1755766250449,-480.0,0.00021917,3]
[380436216,1755766250459,-480.0,0.00021917,3]
[380436217,1755766250468,-480.0,0.00021917,3]
[380436218,1755766250478,-480.0,0.00021917,3]
[380436219,1755766250487,-480.0,0.00021917,3]
[380436220,1755766250496,-1551.24,0.00021917,3]
[380436221,1755766250509,-648.66,0.00021917,3]
[380436222,1755766250518,-551.78975034,0.00021917,3]
[380436223,1755766250528,-151.0,0.00021917,2]
[380436224,1755766250537,-480.0,0.00021917,3]
[380436225,1755766250546,-151.0,0.00021917,2]
[380436226,1755766250555,-151.0,0.00021917,2]
[380436227,1755766250572,-480.0,0.00021917,3]
[380436228,1755766250590,-480.0,0.00021917,3]
[380436229,1755766250600,-1108.96,0.00021917,3]
[380436230,1755766250610,-481.65410567,0.00021917,3]
[380436231,1755766250618,-480.0,0.00021917,2]
[380436232,1755766250627,-822.05,0.00021917,3]
[380436233,1755766250636,-480.0,0.00021917,3]
[380436234,1755766250645,-480.0,0.00021917,3]
[380436235,1755766250654,-151.0,0.00021917,2]
[380436236,1755766250663,-151.0,0.00021917,2]
[380436237,1755766250672,-151.0,0.00021917,2]
[380436238,1755766250681,-151.0,0.00021917,2]
[380436239,1755766250691,-151.0,0.00021917,2]
[380436240,1755766250702,-480.0,0.00021917,3]
[380436241,1755766250712,-500.0,0.00021917,3]
[380436242,1755766250722,-295.34397073,0.00021917,3]